Cogmind - Beta 14 @@@ ROGUE MODE // 2024.11.23 @ 20:22:05 Player: human Result: Destroyed by as-29988 with Assembled Heavy Rifle Performance ------------- Evolutions (0) 0 Regions Visited (2) 400 Robots Destroyed (14) 70 Value Destroyed (393) 393 Prototype IDs (0) 0 Alien Tech Used (0) 0 Bonus (0) 0 TOTAL SCORE: 863 Bonus ------- None Cogmind --------- Core Integrity 0/250 Matter 283/300 Energy 100/100 System Corruption 4% Temperature Cool (0) Movement Core (50) Location -10/Mines Parts ------- > --- POWER (1) -------- (None) > --- PROPULSION (2) --- (None) > --- UTILITY (2) ------ Signal Interpreter > --- WEAPON (2) ------- Mining Claw > --- INVENTORY (5) ---- Ion Engine High-capacity Storage Unit Targeting Computer Light Assault Rifle Datajack Peak State ------------ > --- POWER ------------ Ion Engine > --- PROPULSION ------- Aluminum Leg Aluminum Leg > --- UTILITY ---------- Small Storage Unit Signal Interpreter > --- WEAPON ----------- Assault Rifle Light Assault Rifle > --- INVENTORY -------- Ion Engine Grenade Launcher Datajack Mining Claw [Rating: 7] Favorites ----------- Power Ion Engine Engine Ion Engine Propulsion Aluminum Leg Leg Aluminum Leg Utility Small Storage Unit Storage Small Storage Unit Processor Signal Interpreter Weapon Mining Claw Ballistic Gun Light Assault Rifle Launcher Grenade Launcher Slashing Weapon Mining Claw Build | -11 -10 -10 ------- Run | Yrd Mat Min Slots Evolved . | . . . Power . | . . . Propulsion . | . . . Utility . | . . . Weapon . | . . . Parts Attached 12 | 6 4 2 Power 2 | 1 1 . Engine 2 | 1 1 . Core . | . . . Reactor . | . . . Propulsion 4 | 2 . 2 Treads . | . . . Leg 4 | 2 . 2 Wheel . | . . . Hover . | . . . Flight . | . . . Utility 2 | 1 1 . Device . | . . . Storage 1 | 1 . . Processor 1 | . 1 . Hackware . | . . . Protection . | . . . Artifact . | . . . Weapon 4 | 2 2 . Energy Gun . | . . . Energy Cannon . | . . . Ballistic Gun 2 | 2 . . Ballistic Cannon . | . . . Launcher 1 | . 1 . Special Weapon . | . . . Impact Weapon . | . . . Slashing Weapon 1 | . 1 . Piercing Weapon . | . . . Special Melee Weapon . | . . . Unidentified Prototypes . | . . . Parts Lost 5 | . . 5 Power 1 | . . 1 Propulsion 3 | . . 3 Utility . | . . . Weapon 1 | . . 1 Highest Loss Streak 4 | . . 4 To Critical Strikes . | . . . Average Slot Usage (%) 86 | . 91 77 Engine 12 | . 14 9 Leg 22 | . 25 16 Storage 13 | . 14 13 Processor 10 | . 8 14 Ballistic Gun 13 | . 20 . Launcher 5 | . 3 9 Slashing Weapon 7 | . 4 14 Peak Build Rating 7 | 6 7 7 Average Rating 6 | 3 6 5 On Entrance 4 | . 6 7 Naked Turns . | . . . Heaviest Build 15 | 13 15 15 Greatest Support 20 | 20 20 20 Greatest Overweight (x) 4 | . 1 4 Average Overweight (x) . | . . . Largest Inventory Capacity 8 | 8 8 8 Average Capacity 7 | 5 8 7 Most Carried 8 | 5 8 8 Average Carried 5 | 2 5 6 Final Capacity 8 | 8 8 5 Final Carried 8 | 1 8 5 Class Distribution -------------------- 100% | Mutant Dominant Class ---------------- Mutant | -10/Materials Mutant | -10/Mines Resources | -11 -10 -10 ----------- Run | Yrd Mat Min Matter Collected 443 | 198 135 110 Remotely . | . . . Salvage Created 369 | . 302 67 Parts 21 | . 17 4 Haulers Intercepted 1 | . 1 . Recyclers Shooed . | . . . Parts Field Recycled . | . . . Retrieved Matter . | . . . Parts Self-Destructed . | . . . Prevented . | . . . Kills | -11 -10 -10 ------- Run | Yrd Mat Min Combat Hostiles Destroyed 12 | . 10 2 Melee 1 | . . 1 Guns 3 | . 3 . AOE 8 | . 7 1 Classes Destroyed 4 | . 4 . Hauler 1 | . 1 . Operator 1 | . 1 . Swarmer 3 | . 3 . Grunt 9 | . 7 2 Best Kill Streak 8 | . 8 2 Combat Bots Only 7 | . 7 2 Max Kills in Single Turn 3 | . 3 1 Gunslinging . | . . . Exploded 3 | . 3 1 Melee 1 | . . 1 Uniques/NPCs Destroyed . | . . . Combat | -11 -10 -10 -------- Run | Yrd Mat Min Hostile Shots Fired 63 | . 43 20 Missed 18 | . 14 4 Damage Taken 764 | . 365 399 Core 258 | . 118 140 Absorbed by Shields . | . . . Core Remaining (%) 100 | 100 . . Volleys Fired 19 | . 16 3 Largest 2 | . 2 1 Hottest 40 | . 40 30 Shots Fired 29 | . 26 3 Gun 20 | . 20 . Cannon . | . . . Launcher 9 | . 6 3 Special . | . . . Kinetic 20 | . 20 . Thermal . | . . . Explosive 9 | . 6 3 Electromagnetic . | . . . Robot Hit Streak 6 | . 6 1 Robot Miss Streak 2 | . 1 2 Penetration Max . | . . . Secondary Targets 1 | . 1 . Max Gunslinging Chain 1 | . 1 . Shots Hit Robots 23 | . 19 4 Core Hits 27 | . 22 5 Critical Kills . | . . . Critical Parts Destroyed . | . . . Critical Strikes . | . . . Melee Attacks 5 | . 1 4 Impact . | . . . Slashing 5 | . 1 4 Piercing . | . . . Sneak Attacks 1 | . 1 . Combat Hostiles . | . . . Follow-up Attacks . | . . . Damage Inflicted 841 | . 611 230 Guns 150 | . 150 . Cannons . | . . . Explosions 558 | . 400 158 Melee 133 | . 61 72 Ramming . | . . . Kinetic 150 | . 150 . Thermal . | . . . Explosive 558 | . 400 158 Electromagnetic . | . . . Impact . | . . . Slashing 133 | . 61 72 Piercing . | . . . Highest Corruption 4 | . 4 4 Average Corruption 3 | . 3 4 Corruption Purged . | . . . Corruption Blocked . | . . . Effects 19 | . 12 7 Message Errors 7 | . 3 4 Matter Fused 4 | . 2 2 Energy Discharges 2 | . 1 1 Parts Rejected 1 | . 1 . Data Loss (minor) 4 | . 4 . Data Loss (major) 1 | . 1 . Overload Shots . | . . . Overflow Damage 31 | . 31 . Projectiles . | . . . Explosions . | . . . Melee 31 | . 31 . Knockbacks . | . . . Impact . | . . . Kinetic . | . . . Secondary . | . . . Self-Inflicted Damage 38 | . . 38 Shots 2 | . . 2 Rammed . | . . . Targets Rammed . | . . . Kicked . | . . . Crushed . | . . . Highest Temperature 43 | . 43 14 Average Temperature 17 | . 18 10 Received Heat Transfer 302 | . 222 80 Siege Activations . | . . . Robots Corrupted . | . . . Combat Hostiles . | . . . Parts Fried . | . . . Impact Corruptions . | . . . Robots Melted . | . . . Combat Hostiles . | . . . Parts Melted . | . . . Heat Transferred . | . . . Parts Sabotaged . | . . . Parts Stolen . | . . . Parts Stripped . | . . . Power Chain Reactions . | . . . Alert | -11 -10 -10 ------- Run | Yrd Mat Min Peak Influence 245 | . 245 168 Initial 95 | . . 95 Average 102 | . 87 152 Maximum Alert Level 1 | . 1 . Low Security (%) 85 | 100 77 100 Level 1 14 | . 22 . Level 2 . | . . . Level 3 . | . . . Level 4 . | . . . Level 5 . | . . . High Security . | . . . Max Security . | . . . Squads Dispatched 2 | . 2 . Investigation 1 | . 1 . Extermination . | . . . Reinforcement 1 | . 1 . Assault . | . . . Garrison . | . . . Intercept . | . . . Searches Triggered . | . . . Construction Impeded . | . . . Haulers Reinforced . | . . . Active Scanning Responses . | . . . Cargo Convoy Interrupts . | . . . Stealth | -11 -10 -10 --------- Run | Yrd Mat Min Distress Signals 2 | . 1 1 Communications Jammed . | . . . Distress Signals . | . . . Times Spotted 27 | . 15 12 Peak Tracking Total 9 | . 6 9 Tactical Retreats 1 | . . 1 Traps | -11 -10 -10 ------- Run | Yrd Mat Min Traps Triggered 4 | . 4 . Indirectly . | . . . Trap Hack Attempts . | . . . Triggered . | . . . Disarmed . | . . . Reprogrammed . | . . . Reused . | . . . Traps Extracted . | . . . Installed . | . . . Triggered . | . . . Machines | -11 -10 -10 ---------- Run | Yrd Mat Min Machines Disabled . | . . . Max in Single Turn . | . . . Machines Repaired . | . . . Machines Dismantled . | . . . Machines Sabotaged . | . . . Overloaded Fab Kills . | . . . Hacking | -11 -10 -10 --------- Run | Yrd Mat Min Machines Accessed 7 | . 7 . Terminals 6 | . 6 . Fabricators . | . . . Repair Stations . | . . . Recycling Units 1 | . 1 . Scanalyzers . | . . . Garrison Access . | . . . Total Hacks 21 | . 21 . Successful 5 | . 5 . Failed 16 | . 16 . Catastrophic . | . . . Database Lockouts . | . . . Manual 16 | . 16 . Terminals 18 | . 18 . Fabricators . | . . . Repair Stations . | . . . Recycling Units 3 | . 3 . Scanalyzers . | . . . Garrison Access . | . . . Terminal Hacks . | . . . Fabricator Hacks . | . . . Repair Station Hacks . | . . . Recycling Unit Hacks 1 | . 1 . Report Inventory 1 | . 1 . Scanalyzer . | . . . Garrison Access Hacks . | . . . Unauthorized Hacks 4 | . 4 . Terminals 4 | . 4 . Assimilate 3 | . 3 . Operators 1 | . 1 . Fabricators . | . . . Repair Stations . | . . . Recycling Units . | . . . Scanalyzers . | . . . Garrison Access . | . . . Data Cores Recovered . | . . . Used . | . . . Hacking Detections 6 | . 6 . Full Trace Events 2 | . 2 . Feedback Events . | . . . Feedback Blocked . | . . . Robot Schematics Acquired . | . . . Robots Built . | . . . Authchips . | . . . Time . | . . . Total Robot Build Rating . | . . . Part Schematics Acquired . | . . . Parts Built . | . . . Authchips . | . . . Time . | . . . Total Part Build Rating . | . . . Parts Repaired . | . . . Time . | . . . Parts Recycled . | . . . Recycled Matter . | . . . Retrieved Matter . | . . . Retrieved Components . | . . . Parts Scanalyzed . | . . . Part Schematics Acquired . | . . . Parts Damaged . | . . . Bothacking | -11 -10 -10 ------------ Run | Yrd Mat Min Used RIF Installer . | . . . Robots Hacked . | . . . Non-combat . | . . . Combat . | . . . Robot Hacks Applied . | . . . Relay Couplers Released . | . . . Fabnet Peak Effective % . | . . . Robots Rewired . | . . . Allies Hacked . | . . . Hacks Repelled . | . . . Allies | -11 -10 -10 -------- Run | Yrd Mat Min Total Allies . | . . . Largest Group . | . . . Highest-Rated Group . | . . . Highest-Rated Ally . | . . . Total Orders . | . . . Ally Attacks . | . . . Total Damage . | . . . Kills . | . . . Allies Corrupted . | . . . Allies Melted . | . . . Intel | -11 -10 -10 ------- Run | Yrd Mat Min Robot Analysis Total . | . . . Derelict Logs Recovered . | . . . Drone Launches . | . . . Drone Recoveries . | . . . Exploration | -11 -10 -10 ------------- Run | Yrd Mat Min Turns Passed 1005 | 63 631 311 Spaces Moved 699 | 53 417 229 Core 110 | 20 . 90 Treads . | . . . Legs 589 | 33 417 139 Wheels . | . . . Hover . | . . . Flight . | . . . Fastest Speed 50 | 50 120 50 Average Speed 125 | 93 131 120 Slowest Speed 250 | 120 190 250 Overloaded Moves . | . . . Propulsion Burnouts . | . . . Robots Hopped . | . . . Cave-ins Triggered . | . . . Exploration Rate (%) 42 | 3 81 43 Regions Visited 2 Branch Regions 1 Pre-discovered Areas . | . . . Known Exits Taken 1 | . 1 . Unknown Exits Taken 1 | 1 . . Scrap Searched . | . . . Spaces Dug 9 | . 9 . Terrain Destroyed 55 | . 35 20 Melee . | . . . Projectile . | . . . AOE 55 | . 35 20 Terrain Rammed . | . . . Walls Destroyed . | . . . Machines Disabled . | . . . Actions | -11 -10 -10 --------- Run | Yrd Mat Min Total 793 | 67 474 252 Wait 38 | . 26 12 Move 697 | 52 416 229 Hop . | . . . Pick Up 18 | 8 9 1 Fast Attach 1 | . 1 . Attach 10 | 6 2 2 Detach . | . . . Swap 1 | . 1 . Drop 4 | 1 2 1 Fire 19 | . 16 3 Melee 5 | . 1 4 Ram . | . . . Kick . | . . . Crush . | . . . Escape Stasis . | . . . Rewire . | . . . Trap . | . . . Miscellaneous . | . . . Route ------- -11/Scrapyard -10/Materials (discovered 4 exits: *Mat x3 / *Min) -10/Mines History --------- Turn | Location | Event 9 | -11/Scrapyard | Discovered new exit (range 15) 64 | -11/Scrapyard | Entered Materials 261 | -10/Materials | Discovered new exit (range 16) 302 | -10/Materials | Identified exit to Materials 317 | -10/Materials | Build established: Mutant 470 | -10/Materials | Discovered exit to Materials (range 3) 575 | -10/Materials | Destroyed 7 combat bots 677 | -10/Materials | Discovered new exit (range 10) 691 | -10/Materials | Discovered exit to Materials (range 9) 693 | -10/Materials | Identified exit to Mines 695 | -10/Materials | Entered Mines 700 | -10/Mines | Core integrity fell below 50% 728 | -10/Mines | Met a Derelict bent on vengeance 761 | -10/Mines | Found a hidden stash of uninstalled traps 896 | -10/Mines | Core integrity fell below 20% 928 | -10/Mines | Lost 4 parts (1p2n1w) 968 | -10/Mines | Assembled infested the area 973 | -10/Mines | Assisted by a Guerilla fighting off Assembled 1006 | -10/Mines | Destroyed by as-29988 with Assembled Heavy Rifle Last Messages --------------- 00895_ Aluminum Leg destroyed. 00897_ YI-UF0 destroyed. 00899_ The unstable cave ceiling collapses. 00900_ Acquired 72 matter. 00909_ The unstable cave ceiling collapses. 00917_ RA1R%Q/38UI|VI%D|9P%P09 00940_ U-05 Engineer lays Concrete. 00953_ RVSAWPK 6PNF/FQ5X/: >KTONWW 01003_ U-05 Engineer lays Concrete. 01003_ 0E-45R(h): "I'll hold them off! Go on ahead or try to find another way!" 01003_ HV Slug penetrates Wall. 01003_ HV Slug penetrates Earth. 01004_ U-05 Engineer lays Concrete. Map ----- +----------------------------------------------------+ | | | | | | | | | | | | | | | ????????????????????????????????????????????????? | | ????????????????????????????????????????????????? | | ????????????????????????????????????????????????? | | ????????????????????????????????????????????????? | | ?????#####??????????????????????????######??????? | | ????## ##?????????????????????????? #?????? | | ????# #???????????????????????????# ###### | | ????# #????????????????????????????# # # | | ???## #??######?????####??????????????# # | | ??## #### ## #?##?? t #????????????#?# | | ??# # # ## #### #???????????? ## | | ??# # ### #???????????? ## # ! | | ??## #???????????? ### | | ???## [ ##???????????# ## ## *## | | ????### ### ##??????????# #### # # | | ??????# # ## ####???????# ### | | ??????# # # # #???????# ##### #?? | | ??????###### ## ## #???????# #???# #?? | | ???????????## # # h@ ### #??????## #???# #?? | | ???#####??#### ###?# #?????## ##?## ### | | ??## ### a # #???# #????## ### | | ??# ### #???# ###### | | ??# ## #???# #### | | ??## aa #### #???######### ## ##??# | | ???## #; ##??# #???????????###### #???# | | ????## ########???# #??????????????### ##### | | ?????#### #??????????# ??????????????# | | ????????# #??????????# ?????????????# ##### | | ????????# #?????????? ###?????????????# ???# | | ????????# #?????????? ???????????????# ???# | | ????????# #??????????#???????????????## ??? | | ????????# #???????????????????????????### ??? | | ????????# #?????????????????????????????## ?? | | ????????# #??????????????????????????????## ?? | | ????????# ####?????????????????????????????# ? | | ????????# #?????????????????????????????? ? | | ????????####!#??????????????????????????????# | | ???????????#!#??????????????????????????????? # | | ??????###??#!#??????????????????????????????? ?? | | ????### ### #??????????????????????????????? ?? | | ????# ## #### #???????????????????????????? | | ???# #???????????????????????????? | | ???# ## #### #???????????????????????????? | +----------------------------------------------------+ Best States ------------- Heat Dissipation 25 Energy Generation 10 Energy Capacity 250 Matter Stores 283 Matter Capacity 300 Sight Range 16 Terrain Scan Density 10 Evasion (%) 55 Item Schematics ----------------- None Robot Schematics ------------------ None Fabricated ------------ Nothing Alien Tech Used ----------------- None Achievements -------------- None Challenges ------------ None Game ------ Seed HybridVoltaicStabilizer Manual? 0 Play Time 00:14:55 Cumulative 48.6 hours Start 2024.11.23 @ 20:09:48 End 2024.11.23 @ 20:22:05 Sessions 1 Manual Loads 0 Difficulty Rogue Special Mode None Game No. 35 Rogue 35 Adventurer 0 Explorer 0 Win Type - Total 0 Types 0/0/0/0/0/0/0/0/0 Lore% 10 Gallery% 32 Achievement% 27 Wizard Run 0 Options --------- Layout 1 ASCII 0 Keyboard 0 Movement Mouse Keybinds 0 Fullscreen 1 Font 24/Smallcaps Map View 50x35 Zoom Use 0% Tactical HUD 1 Map Filters NONE Filters NONE Steam 1 RUN: 9b155b70-022b-49b8-ac18-0c7bcba1648a